[Event "FIDE World Cup G12-A 2024"]
[Site "Batumi"]
[Date "2024.06.28"]
[Round "6.7"]
[White "Qiu, Laurie"]
[Black "Diaskyzy, Daliya"]
[Result "1-0"]
[ECO "B13"]
[WhiteElo "2068"]
[BlackElo "1793"]
[Annotator "NA RC"]
[PlyCount "99"]
[EventDate "2024.06.23"]
[EventType "swiss"]
[EventCountry "GEO"]
[SourceTitle "playchess.com"]
[Source "ChessBase"]
[SourceQuality "1"]
[TimeControl "5400+30"]

1. e4 {[%emt 0:00:01]} c6 {[%emt 0:00:03]} 2. d4 {[%emt 0:00:06]} d5 {[%emt 0:00:03]} 3. exd5 {[%emt 0:00:19]} cxd5 {[%emt 0:00:04]} 4. Nf3 {[%emt 0:00:08]} Nc6 {[%emt 0:00:04]} 5. c3 {[%emt 0:00:08]} Bf5 {[%emt 0:00:06]} 6. Bd3 {[%emt 0:00:10] B13: Caro-Kann: Exchange Variation and Panov-Botvinnik Attack.} Bxd3 {[%emt 0:00:23]} 7. Qxd3 {[%emt 0:00:12]} e6 {[%emt 0:00:14]} 8. Bf4 {[%emt 0:00:39]} Nf6 {[%emt 0:00:07]} 9. Nbd2 {[%emt 0:00:19] 9.Nbd2 is better than 9.0-0.} Bd6 {[%emt 0:00:12]} 10. Bxd6 {[%emt 0:01:27]} Qxd6 {[%emt 0:00:06]} 11. O-O {[%emt 0:00:27]} O-O {[%emt 0:00:11]} 12. Rfe1 {[%emt 0:00:39]} h6 {[%emt 0:01:33]} 13. a4 $146 {[%emt 0:00:43]} ({Predecessor:} 13. Ne5 Nd7 14. f4 f5 15. Ndf3 Ndxe5 16. Nxe5 Nxe5 17. Rxe5 Rf6 18. Rae1 Rc8 19. Qb5 {½-½ Robers,F-Zorn,N Rangliste 1400-1700 21737 2019}) 13... Qc7 {[%emt 0:02:58]} 14. h3 {[%emt 0:02:28]} a6 {[%emt 0:06:34]} 15. b4 {[%emt 0:06:12]} b6 {[%emt 0:05:53]} 16. Ne5 {[%emt 0:06:49]} Rfc8 {[%emt 0:01:52]} 17. Nxc6 {[%emt 0:04:07]} Qxc6 {[%emt 0:00:10]} 18. Rec1 {[%emt 0:00:42]} Ne8 {[%emt 0:08:06]} 19. c4 {[%emt 0:05:10]} dxc4 {[%emt 0:11:04]} 20. Rxc4 {[%emt 0:07:56]} Qb7 {[%emt 0:01:57]} 21. Rxc8 {[%emt 0:09:41]} Rxc8 {[%emt 0:00:11]} 22. b5 {[%emt 0:03:02]} axb5 {[%emt 0:59:39]} 23. Qxb5 {[%emt 0:02:25]} Nd6 {[%emt 0:00:00]} 24. Qb4 {[%emt 0:01:47]} Nf5 {[%emt 0:00:00]} 25. Nf3 {[%emt 0:06:03]} Qa6 {[%emt 0:00:00]} 26. Ne5 $15 {[%emt 0:10:25]} (26. d5 $11 {feels stronger.}) 26... Rc2 {[%emt 0:00:00]} 27. Nd7 {[%emt 0:07:03]} Qe2 {[%emt 0:00:00]} 28. Qe1 {[%emt 0:03:03]} Qxe1+ {[%emt 0:00:00]} 29. Rxe1 {[%emt 0:00:02]} Nxd4 {[%emt 0:00:00]} 30. Nxb6 {[%emt 0:00:54]} Rb2 {[%emt 0:00:00]} 31. Nd7 {[%emt 0:06:14]} Ra2 {[%emt 0:00:00]} 32. Rb1 {[%emt 0:03:53]} f6 {[%emt 0:00:00]} 33. Rb8+ {[%emt 0:06:02]} Kf7 {[%emt 0:00:00]} 34. Ra8 {[%emt 0:00:57]} Ne2+ {[%emt 0:00:00]} 35. Kh1 {[%emt 0:00:30]} Nf4 {[%emt 0:00:00]} 36. a5 {[%emt 0:00:26]} Nd5 {[%emt 0:00:00]} 37. a6 {[%emt 0:02:09]} Nc7 {[%emt 0:00:00]} 38. Ra7 {[%emt 0:00:17]} Nb5 {[%emt 0:00:07]} 39. Rb7 {[%emt 0:00:22]} Nd6 {[%emt 0:01:36]} 40. Rb6 {[%emt 0:03:26]} Ne4 {[%emt 0:05:13]} 41. Nb8 {[%emt 0:01:21]} Kg6 {[%emt 0:02:00]} 42. Nc6 {[%emt 0:01:40]} Nd6 {[%emt 0:00:33]} 43. a7 {[%emt 0:00:23]} Nc8 {[%emt 0:00:29]} 44. Rb7 {[%emt 0:00:20]} Ra6 {[%emt 0:00:22]} 45. Rc7 {[%emt 0:01:15]} Nb6 {[%emt 0:00:34]} 46. g3 {[%emt 0:00:33]} h5 {[%emt 0:00:27]} 47. Kg2 {[%emt 0:00:20]} Na8 {[%emt 0:00:35]} 48. Rc8 {[%emt 0:00:10]} Kh6 {[%emt 0:00:30]} 49. Rxa8 {[%emt 0:00:08]} Ra4 {[%emt 0:00:33]} 50. Rh8+ {[%emt 0:00:10]} 1-0

[Event "FIDE World Cup G12-A 2024"]
[Site "Batumi"]
[Date "2024.06.28"]
[Round "6.8"]
[White "Lipartia, Nino"]
[Black "Kedelidze, Aneta"]
[Result "0-1"]
[ECO "B94"]
[WhiteElo "1437"]
[BlackElo "1544"]
[Annotator "NA RC"]
[PlyCount "126"]
[EventDate "2024.06.23"]
[EventType "swiss"]
[EventCountry "GEO"]
[SourceTitle "playchess.com"]
[Source "ChessBase"]
[SourceQuality "1"]
[TimeControl "5400+30"]

1. e4 {[%emt 0:00:01]} c5 {[%emt 0:01:45]} 2. Nf3 {[%emt 0:00:02]} d6 {[%emt 0:00:08]} 3. d4 {[%emt 0:00:02]} cxd4 {[%emt 0:00:21]} 4. Nxd4 {[%emt 0:00:01]} Nf6 {[%emt 0:00:07]} 5. Nc3 {[%emt 0:00:03]} a6 {[%emt 0:00:06]} 6. Bg5 {[%emt 0:00:03]} Nbd7 {[%emt 0:00:20]} 7. Qe2 {[%emt 0:01:07]} h6 {[%emt 0:01:47]} 8. Bh4 {[%emt 0:01:06]} g6 {[%emt 0:01:15]} 9. O-O-O {[%emt 0:01:26]} e5 {[%emt 0:02:28]} 10. Nb3 {[%emt 0:02:24]} Be7 {[%emt 0:01:46]} 11. f4 {[%emt 0:07:34]} b5 {[%emt 0:02:46]} 12. Bxf6 {[%emt 0:07:00]} Bxf6 {[%emt 0:08:30]} 13. Rxd6 {[%emt 0:08:05]} Qc7 {[%emt 0:10:28]} 14. Rd1 {[%emt 0:11:04]} Bb7 {[%emt 0:04:25]} 15. Kb1 {[%emt 0:08:35]} b4 {[%emt 0:22:26]} 16. Nd5 {[%emt 0:02:48]} Bxd5 {[%emt 0:00:15]} 17. exd5 {[%emt 0:00:43]} O-O {[%emt 0:01:22]} 18. f5 {[%emt 0:01:40]} e4 {[%emt 0:07:58]} 19. Qxe4 {[%emt 0:12:17]} Rae8 {[%emt 0:01:48]} 20. d6 {[%emt 0:07:57]} Qb6 {[%emt 0:01:48]} 21. Qc4 {[%emt 0:04:59]} Rc8 {[%emt 0:11:12]} 22. Qxa6 {[%emt 0:05:12]} Qf2 {[%emt 0:00:30]} 23. Qd3 {[%emt 0:01:35]} Ne5 {[%emt 0:02:26]} 24. Qd2 {[%emt 0:01:33]} Qxf5 {[%emt 0:01:51]} 25. Bb5 {[%emt 0:07:02]} Nc4 {[%emt 0:05:31]} 26. Bxc4 {[%emt 0:00:09]} Rxc4 {[%emt 0:00:07]} 27. Rhe1 {[%emt 0:00:44]} Rd8 {[%emt 0:02:26]} 28. Re2 {[%emt 0:01:06]} Qd7 {[%emt 0:02:51]} 29. Qd5 {[%emt 0:04:05]} Rc6 {[%emt 0:02:41]} 30. Red2 {[%emt 0:02:06]} Rdc8 {[%emt 0:01:55]} 31. Qe4 {[%emt 0:01:48]} Bg5 {[%emt 0:02:41]} 32. Rd5 {[%emt 0:00:53]} Bf6 {[%emt 0:00:00]} 33. Nd4 {[%emt 0:00:54]} Bxd4 {[%emt 0:00:00]} 34. R5xd4 {[%emt 0:00:17]} Re8 {[%emt 0:00:30]} 35. Qd3 {[%emt 0:00:31]} Rb6 {[%emt 0:00:52]} 36. Qb3 {[%emt 0:00:37]} Rxd6 {[%emt 0:00:16]} 37. Rxd6 {[%emt 0:00:21]} Qxd6 {[%emt 0:00:06]} 38. Rf1 {[%emt 0:00:35]} Qe7 {[%emt 0:00:16]} 39. a3 {[%emt 0:00:46]} bxa3 {[%emt 0:00:46]} 40. Qxa3 {[%emt 0:00:40]} Qe2 {[%emt 0:01:02]} 41. Qf3 {[%emt 0:00:22]} Qc4 {[%emt 0:00:07]} 42. Rd1 {[%emt 0:00:34]} Qa4 {[%emt 0:00:53]} 43. Qb3 {[%emt 0:00:18]} Qe4 {[%emt 0:00:32]} 44. Qd5 {[%emt 0:00:22]} Qf4 {[%emt 0:00:35]} 45. Qd6 {[%emt 0:00:33]} Qe4 {[%emt 0:00:20]} 46. Qd5 {[%emt 0:00:18]} Qf4 {[%emt 0:00:28]} 47. g3 {[%emt 0:00:39]} Qf6 {[%emt 0:00:19]} 48. Qd4 {[%emt 0:00:26]} Qg5 {[%emt 0:00:47]} 49. Qa4 {[%emt 0:01:06]} Qe5 {[%emt 0:00:31]} 50. Qf4 {[%emt 0:00:17]} Qg7 {[%emt 0:00:26]} 51. Qd4 {[%emt 0:00:14]} Qf8 {[%emt 0:00:14]} 52. c3 {[%emt 0:00:25]} Qe7 {[%emt 0:00:15]} 53. Kc2 {[%emt 0:00:42]} Qe2+ {[%emt 0:00:31]} 54. Rd2 {[%emt 0:00:12]} Qb5 {[%emt 0:00:25]} 55. Qd7 {[%emt 0:00:40]} Qe5 {[%emt 0:00:12]} 56. Qd5 {[%emt 0:00:50]} Qe7 {[%emt 0:00:34]} 57. Qd4 {[%emt 0:00:20]} Qe6 {[%emt 0:00:30]} 58. Rf2 {[%emt 0:00:37]} Qe7 {[%emt 0:00:36]} 59. Rd2 {[%emt 0:00:19]} Qe6 {[%emt 0:00:09]} 60. Qd5 {[%emt 0:00:51]} Qf6 {[%emt 0:00:34]} 61. Qb5 {[%emt 0:00:30]} Qe6 {[%emt 0:00:23]} 62. Qd3 {[%emt 0:00:23]} Qe7 {[%emt 0:00:14]} 63. c4 {[%emt 0:00:35]} Qa7 {[%emt 0:01:03]} 0-1

[Event "FIDE World Cup G12-A 2024"]
[Site "Batumi"]
[Date "2024.06.28"]
[Round "6.9"]
[White "Gulishyan, Eseniya"]
[Black "Muradova, Nebahat"]
[Result "1-0"]
[ECO "C00"]
[WhiteElo "1434"]
[BlackElo "1626"]
[Annotator "NA RC"]
[PlyCount "87"]
[EventDate "2024.06.23"]
[EventType "swiss"]
[EventCountry "GEO"]
[SourceTitle "playchess.com"]
[Source "ChessBase"]
[SourceQuality "1"]
[TimeControl "5400+30"]

1. e4 {[%emt 0:00:28]} c5 {[%emt 0:00:08]} 2. Nf3 {[%emt 0:00:11]} Nc6 {[%emt 0:00:05]} 3. g3 {[%emt 0:00:12]} e6 {[%emt 0:00:09]} 4. d3 {[%emt 0:00:39]} d5 {[%emt 0:01:43]} 5. Nbd2 {[%emt 0:00:18]} Nf6 {[%emt 0:01:21]} 6. Bg2 {[%emt 0:00:18]} Be7 {[%emt 0:01:16]} 7. O-O {[%emt 0:00:25]} O-O {[%emt 0:01:18]} 8. e5 {[%emt 0:02:46]} Nd7 {[%emt 0:00:33]} 9. Re1 {[%emt 0:00:16]} a6 {[%emt 0:01:24]} 10. Nf1 {[%emt 0:00:18]} b5 {[%emt 0:00:47]} 11. h4 {[%emt 0:00:22]} c4 {[%emt 0:01:06]} 12. d4 {[%emt 0:02:58]} b4 {[%emt 0:02:27]} 13. a3 {[%emt 0:01:08]} bxa3 {[%emt 0:06:41]} 14. bxa3 {[%emt 0:00:05]} Re8 {[%emt 0:02:25]} 15. Bf4 {[%emt 0:12:31]} a5 {[%emt 0:03:05]} 16. N1h2 {[%emt 0:00:57]} Nf8 {[%emt 0:04:20]} 17. Ng4 {[%emt 0:07:20]} Ng6 {[%emt 0:05:08]} 18. Bg5 {[%emt 0:05:19]} Bd7 {[%emt 0:04:19]} 19. Qd2 {[%emt 0:03:32]} Bxg5 {[%emt 0:05:08]} 20. hxg5 {[%emt 0:01:00]} Qe7 {[%emt 0:03:24]} 21. Kh2 {[%emt 0:03:24]} Qf8 {[%emt 0:08:19]} 22. Rh1 {[%emt 0:00:44]} Kh8 {[%emt 0:09:51]} 23. Kg1 {[%emt 0:00:34]} Qg8 {[%emt 0:02:03]} 24. Rh3 {[%emt 0:00:44]} Rab8 {[%emt 0:03:23]} 25. Kh2 {[%emt 0:00:21]} Rb2 {[%emt 0:00:47]} 26. Rh1 {[%emt 0:00:58]} Reb8 {[%emt 0:01:02]} 27. Kg1 {[%emt 0:00:39]} Rb1+ {[%emt 0:02:11]} 28. Bf1 {[%emt 0:00:08]} Nf8 {[%emt 0:02:12]} 29. Qf4 {[%emt 0:06:47]} R8b2 {[%emt 0:06:37]} 30. Nh6 {[%emt 0:01:54]} gxh6 {[%emt 0:03:33]} 31. gxh6 {[%emt 0:00:20]} Qg6 {[%emt 0:00:29]} 32. Nh4 {[%emt 0:00:18]} Rxf1+ {[%emt 0:02:13]} 33. Kxf1 {[%emt 0:00:55]} Rb1+ {[%emt 0:01:52]} 34. Kg2 {[%emt 0:00:09]} Qe4+ {[%emt 0:01:34]} 35. Qxe4 {[%emt 0:00:04]} dxe4 {[%emt 0:00:16]} 36. Rxb1 {[%emt 0:00:02]} Nxd4 {[%emt 0:00:30]} 37. Rb8 {[%emt 0:00:08]} Kg8 {[%emt 0:00:13]} 38. c3 {[%emt 0:01:35]} Nc2 {[%emt 0:00:32]} 39. Kf1 {[%emt 0:00:20]} Nxa3 {[%emt 0:00:16]} 40. Ng2 {[%emt 0:00:15]} f5 {[%emt 0:01:29]} 41. Rh5 {[%emt 0:00:32]} Kf7 {[%emt 0:00:13]} 42. Rg5 {[%emt 0:00:06]} Ng6 {[%emt 0:00:09]} 43. Rb7 {[%emt 0:00:10]} Ke8 {[%emt 0:01:19]} 44. Rxg6 {[%emt 0:00:24]} 1-0

[Event "FIDE World Cup G12-A 2024"]
[Site "Batumi"]
[Date "2024.06.28"]
[Round "6.10"]
[White "Giorgadze, Mariam"]
[Black "Potikha, Shelley"]
[Result "1/2-1/2"]
[ECO "C06"]
[WhiteElo "1533"]
[BlackElo "1464"]
[Annotator "NA RC"]
[PlyCount "154"]
[EventDate "2024.06.23"]
[EventType "swiss"]
[EventCountry "GEO"]
[SourceTitle "playchess.com"]
[Source "ChessBase"]
[SourceQuality "1"]
[TimeControl "5400+30"]

1. e4 {[%emt 0:00:01]} e6 {[%emt 0:00:04]} 2. d4 {[%emt 0:00:05]} d5 {[%emt 0:00:04]} 3. Nd2 {[%emt 0:00:04]} Nf6 {[%emt 0:00:12]} 4. e5 {[%emt 0:00:05]} Nfd7 {[%emt 0:00:05]} 5. Bd3 {[%emt 0:00:03]} c5 {[%emt 0:00:08]} 6. c3 {[%emt 0:00:04]} Nc6 {[%emt 0:00:05]} 7. Ndf3 {[%emt 0:00:08]} cxd4 {[%emt 0:01:47]} 8. cxd4 {[%emt 0:00:06]} f6 {[%emt 0:01:04]} 9. exf6 {[%emt 0:00:18]} Nxf6 {[%emt 0:00:21]} 10. Ne2 {[%emt 0:00:07]} Qc7 {[%emt 0:00:17]} 11. O-O {[%emt 0:00:52]} Bd6 {[%emt 0:00:17]} 12. Nc3 {[%emt 0:01:50]} a6 {[%emt 0:00:25]} 13. Bg5 {[%emt 0:01:30]} O-O {[%emt 0:02:34]} 14. Bh4 {[%emt 0:01:12]} Bd7 {[%emt 0:05:29]} 15. Bg3 {[%emt 0:02:56]} Be8 {[%emt 0:06:10]} 16. Na4 {[%emt 0:20:14]} Bh5 {[%emt 0:03:53]} 17. Be2 {[%emt 0:06:04]} Ne4 {[%emt 0:05:14]} 18. Bxd6 {[%emt 0:05:40]} Qxd6 {[%emt 0:00:21]} 19. Rc1 {[%emt 0:07:09]} Rac8 {[%emt 0:13:02]} 20. a3 {[%emt 0:07:59]} Na5 {[%emt 0:07:02]} 21. Rxc8 {[%emt 0:11:52]} Rxc8 {[%emt 0:00:20]} 22. Ne5 {[%emt 0:05:14]} Bxe2 {[%emt 0:01:05]} 23. Qxe2 {[%emt 0:00:03]} b5 {[%emt 0:03:31]} 24. Nc5 {[%emt 0:07:02]} Nxc5 {[%emt 0:02:39]} 25. dxc5 {[%emt 0:00:04]} Qxc5 {[%emt 0:01:49]} 26. b4 {[%emt 0:00:07]} Qc3 {[%emt 0:03:23]} 27. bxa5 {[%emt 0:01:08]} Qxa3 {[%emt 0:01:28]} 28. Nd3 {[%emt 0:04:12]} Re8 {[%emt 0:03:54]} 29. Qd2 {[%emt 0:03:13]} e5 {[%emt 0:05:38]} 30. Re1 {[%emt 0:01:31]} e4 {[%emt 0:03:24]} 31. Nf4 {[%emt 0:00:55]} d4 {[%emt 0:02:18]} 32. Qxd4 {[%emt 0:06:36]} Qxa5 {[%emt 0:00:34]} 33. Ra1 {[%emt 0:00:04]} Qc7 {[%emt 0:01:05]} 34. g3 {[%emt 0:02:29]} Qc8 {[%emt 0:05:13]} 35. Qd5+ {[%emt 0:01:29]} Kh8 {[%emt 0:00:48]} 36. Qa2 {[%emt 0:00:45]} Qc3 {[%emt 0:08:21]} 37. Qa3 {[%emt 0:03:16]} Qd4 {[%emt 0:07:07]} 38. Ng2 {[%emt 0:02:15]} Ra8 {[%emt 0:01:23]} 39. Ne3 {[%emt 0:00:31]} b4 {[%emt 0:02:02]} 40. Qc1 {[%emt 0:00:35]} h6 {[%emt 0:00:51]} 41. Rb1 {[%emt 0:00:34]} a5 {[%emt 0:01:17]} 42. Qb2 {[%emt 0:00:28]} Qxb2 {[%emt 0:02:10]} 43. Rxb2 {[%emt 0:00:04]} g5 {[%emt 0:00:41]} 44. Nc4 {[%emt 0:00:15]} Kg7 {[%emt 0:00:17]} 45. Kf1 {[%emt 0:00:31]} Kf6 {[%emt 0:00:14]} 46. Ke2 {[%emt 0:00:07]} Ke6 {[%emt 0:01:10]} 47. Ke3 {[%emt 0:00:04]} Kf5 {[%emt 0:01:54]} 48. h3 {[%emt 0:00:44]} h5 {[%emt 0:00:34]} 49. Rb3 {[%emt 0:00:20]} g4 {[%emt 0:00:21]} 50. h4 {[%emt 0:00:14]} Ra6 {[%emt 0:00:27]} 51. Rb2 {[%emt 0:00:17]} Ra8 {[%emt 0:00:28]} 52. Rb3 {[%emt 0:00:17]} Ra6 {[%emt 0:00:07]} 53. Kd4 {[%emt 0:00:12]} Ra8 {[%emt 0:00:22]} 54. Nd6+ {[%emt 0:01:10]} Ke6 {[%emt 0:00:22]} 55. Nxe4 {[%emt 0:00:37]} Rc8 {[%emt 0:00:57]} 56. Nc5+ {[%emt 0:00:40]} Kf5 {[%emt 0:00:24]} 57. Kc4 {[%emt 0:00:48]} Rb8 {[%emt 0:00:58]} 58. Rb2 {[%emt 0:01:00]} Rb6 {[%emt 0:00:35]} 59. Kb3 {[%emt 0:00:52]} Rb5 {[%emt 0:00:31]} 60. Rc2 {[%emt 0:00:39]} Rb8 {[%emt 0:00:33]} 61. Rd2 {[%emt 0:00:26]} Rb5 {[%emt 0:00:34]} 62. Rd5+ {[%emt 0:00:23]} Kg6 {[%emt 0:00:16]} 63. Rg5+ {[%emt 0:00:23]} Kh6 {[%emt 0:00:24]} 64. Ka4 {[%emt 0:00:36]} Rb8 {[%emt 0:00:12]} 65. Nb3 {[%emt 0:00:17]} Rf8 {[%emt 0:00:37]} 66. Rxa5 {[%emt 0:01:10]} Rxf2 {[%emt 0:00:13]} 67. Ra6+ {[%emt 0:00:03]} Kg7 {[%emt 0:00:13]} 68. Ra7+ {[%emt 0:00:40]} Kg6 {[%emt 0:00:12]} 69. Kxb4 {[%emt 0:00:28]} Rf3 {[%emt 0:00:13]} 70. Ra6+ {[%emt 0:00:05]} Kf7 {[%emt 0:00:30]} 71. Rh6 {[%emt 0:00:53]} Rxg3 {[%emt 0:00:19]} 72. Rxh5 {[%emt 0:00:09]} Rh3 {[%emt 0:00:35]} 73. Nd4 {[%emt 0:01:10]} g3 {[%emt 0:01:46]} 74. Nf5 {[%emt 0:00:33]} g2 {[%emt 0:00:52]} 75. Rg5 {[%emt 0:00:13]} Kf6 {[%emt 0:00:29]} 76. Rxg2 {[%emt 0:00:46]} Kxf5 {[%emt 0:00:17]} 77. Rg5+ {[%emt 0:00:05]} Kf4 {[%emt 0:00:25]} 1/2-1/2

[Event "FIDE World Cup G12-A 2024"]
[Site "Batumi"]
[Date "2024.06.28"]
[Round "6.12"]
[White "Ali, Maha"]
[Black "Zavivaeva, Angelina"]
[Result "1/2-1/2"]
[ECO "B13"]
[WhiteElo "1601"]
[BlackElo "1489"]
[Annotator "NA RC"]
[PlyCount "127"]
[EventDate "2024.06.23"]
[EventType "swiss"]
[EventCountry "GEO"]
[SourceTitle "playchess.com"]
[Source "ChessBase"]
[SourceQuality "1"]
[TimeControl "5400+30"]

1. e4 {[%emt 0:00:13]} c6 {[%emt 0:00:02]} 2. d4 {[%emt 0:00:04]} d5 {[%emt 0:00:03]} 3. exd5 {[%emt 0:00:06]} cxd5 {[%emt 0:00:03]} 4. Bd3 {[%emt 0:00:06]} Nc6 {[%emt 0:00:12]} 5. c3 {[%emt 0:00:05]} Nf6 {[%emt 0:00:06]} 6. Bf4 {[%emt 0:00:06]} Bg4 {[%emt 0:00:06]} 7. Qb3 {[%emt 0:00:07]} Qc8 {[%emt 1:33:28]} 8. Nd2 {[%emt 0:00:20]} e6 {[%emt 0:00:00]} 9. Ngf3 {[%emt 0:00:08]} Be7 {[%emt 0:00:00]} 10. O-O {[%emt 0:00:27]} O-O {[%emt 0:00:00]} 11. Qc2 {[%emt 0:01:43]} Bh5 {[%emt 0:00:00]} 12. Ne5 {[%emt 0:00:19]} Bg6 {[%emt 0:00:00]} 13. Nxg6 {[%emt 0:01:10]} hxg6 {[%emt 0:00:00]} 14. Nf3 {[%emt 0:00:48]} a6 {[%emt 0:00:00]} 15. Ne5 {[%emt 0:01:18]} b5 {[%emt 0:00:00]} 16. a3 {[%emt 0:00:47]} Qb7 {[%emt 0:00:00]} 17. Rae1 {[%emt 0:02:12]} Rac8 {[%emt 0:00:00]} 18. Qd1 {[%emt 0:01:37]} Nh5 {[%emt 0:00:00]} 19. Bd2 {[%emt 0:02:59]} Nxe5 {[%emt 0:00:00]} 20. dxe5 {[%emt 0:00:49]} Rfd8 {[%emt 0:00:00]} 21. g4 {[%emt 0:03:43]} Nf6 {[%emt 0:00:00]} 22. exf6 {[%emt 0:01:16]} Bxf6 {[%emt 0:00:00]} 23. f4 {[%emt 0:05:00]} d4 {[%emt 0:00:00]} 24. g5 {[%emt 0:07:57]} dxc3 {[%emt 0:00:00]} 25. gxf6 {[%emt 0:02:48]} Rxd3 {[%emt 0:00:00]} 26. bxc3 {[%emt 0:01:57]} Qb6+ {[%emt 0:00:00]} 27. Rf2 {[%emt 0:03:27]} Rcd8 {[%emt 0:00:00]} 28. Ree2 {[%emt 1:02:58]} Rxc3 {[%emt 0:00:00]} 29. fxg7 {[%emt 0:00:00]} Rcd3 {[%emt 0:00:00]} 30. Qc1 {[%emt 0:00:00]} Qd6 {[%emt 0:01:28]} 31. Qb2 {[%emt 0:00:00]} Qd4 {[%emt 0:08:40]} 32. Qxd4 {[%emt 0:00:00]} R8xd4 {[%emt 0:00:14]} 33. Bb4 {[%emt 0:00:00]} Kxg7 {[%emt 0:01:20]} 34. Rd2 {[%emt 0:00:00]} Rxd2 {[%emt 0:00:17]} 35. Rxd2 {[%emt 0:00:00]} Rxf4 {[%emt 0:00:45]} 36. Bc3+ {[%emt 0:00:00]} Kh7 {[%emt 0:01:00]} 37. Rd8 {[%emt 0:00:00]} g5 {[%emt 0:00:15]} 38. Rh8+ {[%emt 0:00:00]} Kg6 {[%emt 0:00:02]} 39. Bd2 {[%emt 0:00:00]} Rg4+ {[%emt 0:00:41]} 40. Kf2 {[%emt 0:00:00]} Kg7 {[%emt 0:00:21]} 41. Ra8 {[%emt 0:00:00]} f6 {[%emt 0:01:04]} 42. Rxa6 {[%emt 0:00:00]} Re4 {[%emt 0:00:50]} 43. Kf3 {[%emt 0:00:00]} Re5 {[%emt 0:00:17]} 44. Bc3 {[%emt 0:00:00]} Rc5 {[%emt 0:00:29]} 45. Bd4 {[%emt 0:00:00]} Rf5+ {[%emt 0:00:33]} 46. Ke4 {[%emt 0:00:00]} Rf4+ {[%emt 0:00:12]} 47. Kd3 {[%emt 0:00:00]} Kf7 {[%emt 0:00:53]} 48. Be3 {[%emt 0:00:00]} Ra4 {[%emt 0:00:33]} 49. Rxa4 {[%emt 0:00:00]} bxa4 {[%emt 0:00:01]} 50. Kc4 {[%emt 0:00:00]} Kg6 {[%emt 0:00:51]} 51. Kb4 {[%emt 0:00:00]} f5 {[%emt 0:00:31]} 52. Kxa4 {[%emt 0:00:00]} f4 {[%emt 0:00:06]} 53. Bf2 {[%emt 0:00:00]} Kf5 {[%emt 0:00:19]} 54. h4 {[%emt 0:00:00]} gxh4 {[%emt 0:00:43]} 55. Bxh4 {[%emt 0:00:00]} Kg4 {[%emt 0:00:13]} 56. Be1 {[%emt 0:00:00]} Kf3 {[%emt 0:00:29]} 57. Kb3 {[%emt 0:00:00]} Ke2 {[%emt 0:00:12]} 58. Bh4 {[%emt 0:00:00]} e5 {[%emt 0:00:19]} 59. a4 {[%emt 0:00:00]} e4 {[%emt 0:00:12]} 60. a5 {[%emt 0:00:00]} f3 {[%emt 0:00:34]} 61. a6 {[%emt 0:00:00]} e3 {[%emt 0:00:06]} 62. a7 {[%emt 0:00:00]} f2 {[%emt 0:00:04]} 63. Ka4 {[%emt 0:17:30]} f1=Q {[%emt 0:03:26]} 64. a8=Q {[%emt 0:00:30]} 1/2-1/2

[Event "FIDE World Cup G12-A 2024"]
[Site "Batumi"]
[Date "2024.06.29"]
[Round "7.1"]
[White "Venskaya, Nika"]
[Black "Xue, Tianhao"]
[Result "0-1"]
[ECO "E62"]
[WhiteElo "1774"]
[BlackElo "1754"]
[Annotator "NA RC"]
[PlyCount "134"]
[EventDate "2024.06.23"]
[EventType "swiss"]
[EventCountry "GEO"]
[SourceTitle "playchess.com"]
[Source "ChessBase"]
[SourceQuality "1"]
[TimeControl "5400+30"]

1. d4 {[%emt 0:00:05]} Nf6 {[%emt 0:00:07]} 2. Nf3 {[%emt 0:00:20]} g6 {[%emt 0:00:10]} 3. g3 {[%emt 0:00:07]} Bg7 {[%emt 0:00:06]} 4. Bg2 {[%emt 0:00:06]} O-O {[%emt 0:00:07]} 5. O-O {[%emt 0:00:06]} d6 {[%emt 0:00:05]} 6. c4 {[%emt 0:00:41]} Nc6 {[%emt 0:00:08]} 7. Nc3 {[%emt 0:03:27]} e5 {[%emt 0:00:06]} 8. d5 {[%emt 0:00:32]} Nb8 {[%emt 0:00:12]} 9. e4 {[%emt 0:05:05]} a5 {[%emt 0:00:25]} 10. h3 {[%emt 0:01:14]} Na6 {[%emt 0:01:02]} 11. Be3 {[%emt 0:03:12]} Ne8 {[%emt 0:05:17]} 12. Qd2 {[%emt 0:04:52]} Nc5 {[%emt 0:06:07]} 13. b3 {[%emt 0:08:43]} f5 {[%emt 0:05:58]} 14. exf5 {[%emt 0:07:55]} gxf5 {[%emt 0:00:37]} 15. Rac1 {[%emt 0:16:34]} Qf6 {[%emt 0:06:41]} 16. Bxc5 {[%emt 0:06:35]} dxc5 {[%emt 0:00:08]} 17. Qe2 {[%emt 0:08:13]} Ra6 {[%emt 0:05:28]} 18. Nh2 {[%emt 0:04:49]} Bh6 {[%emt 1:06:46]} 19. f4 {[%emt 0:05:35]} Qg7 {[%emt 0:00:00]} 20. Rc2 {[%emt 0:07:20]} e4 {[%emt 0:00:00]} 21. Qf2 {[%emt 0:01:17]} Rg6 {[%emt 0:00:00]} 22. Ne2 {[%emt 0:00:18]} b6 {[%emt 0:00:00]} 23. Rd1 {[%emt 0:00:50]} Nd6 {[%emt 0:00:00]} 24. Nf1 {[%emt 0:01:26]} Qh8 {[%emt 0:00:00]} 25. Kh2 {[%emt 0:01:40]} Bg7 {[%emt 0:00:00]} 26. Rcd2 {[%emt 0:01:01]} h5 {[%emt 0:00:00]} 27. h4 {[%emt 0:02:30]} Ba6 {[%emt 0:00:00]} 28. Rc2 {[%emt 0:01:24]} Bf6 {[%emt 0:00:00]} 29. Bh3 {[%emt 0:02:16]} Qg7 {[%emt 0:00:00]} 30. Kh1 {[%emt 0:00:52]} a4 {[%emt 0:00:00]} 31. Kh2 {[%emt 0:01:18]} Ra8 {[%emt 0:00:00]} 32. Qe1 {[%emt 0:01:45]} axb3 {[%emt 0:00:00]} 33. axb3 {[%emt 0:00:01]} Bc8 {[%emt 0:00:00]} 34. Rb1 {[%emt 0:02:28]} Bd4 {[%emt 0:00:00]} 35. Bg2 {[%emt 0:02:05]} b5 {[%emt 0:02:58]} 36. Ng1 {[%emt 0:01:12]} Ba6 {[%emt 0:01:57]} 37. Qe2 {[%emt 0:00:29]} Rb8 {[%emt 0:00:53]} 38. Rbc1 {[%emt 0:00:20]} bxc4 {[%emt 0:00:41]} 39. bxc4 {[%emt 0:00:01]} Rb4 {[%emt 0:00:40]} 40. Nh3 {[%emt 0:01:10]} Bb2 {[%emt 0:01:39]} 41. Rd1 {[%emt 0:00:26]} Bxc4 {[%emt 0:00:24]} 42. Qxh5 {[%emt 0:00:27]} Bb3 {[%emt 0:00:29]} 43. Rxc5 {[%emt 0:00:31]} Bxd1 {[%emt 0:00:16]} 44. Qxd1 {[%emt 0:00:02]} Bd4 {[%emt 0:00:42]} 45. Rc1 {[%emt 0:00:48]} Bf6 {[%emt 0:00:53]} 46. Qe1 {[%emt 0:00:39]} Rb2 {[%emt 0:00:53]} 47. Ng5 {[%emt 0:00:36]} Bxg5 {[%emt 0:00:03]} 48. hxg5 {[%emt 0:00:23]} Qh8+ {[%emt 0:00:46]} 49. Kg1 {[%emt 0:00:06]} Qd4+ {[%emt 0:00:05]} 50. Qe3 {[%emt 0:00:27]} Qxe3+ {[%emt 0:00:22]} 51. Nxe3 {[%emt 0:00:01]} Re2 {[%emt 0:01:29]} 52. Nc2 {[%emt 0:01:08]} Rd2 {[%emt 0:00:47]} 53. Ne3 {[%emt 0:00:35]} Re2 {[%emt 0:00:35]} 54. Nc2 {[%emt 0:00:03]} Nb5 {[%emt 0:00:36]} 55. Bf1 {[%emt 0:00:25]} Nc3 {[%emt 0:00:11]} 56. Nd4 {[%emt 0:00:11]} Rd2 {[%emt 0:00:18]} 57. Nxf5 {[%emt 0:01:15]} Nxd5 {[%emt 0:00:07]} 58. Bc4 {[%emt 0:00:51]} Kf8 {[%emt 0:00:04]} 59. Bxd5 {[%emt 0:00:36]} Rxd5 {[%emt 0:00:02]} 60. Ne3 {[%emt 0:00:27]} Rd3 {[%emt 0:00:52]} 61. Kf2 {[%emt 0:00:29]} Ra6 {[%emt 0:00:57]} 62. Nf1 {[%emt 0:00:36]} Ra2+ {[%emt 0:00:24]} 63. Ke1 {[%emt 0:00:31]} e3 {[%emt 0:00:24]} 64. f5 {[%emt 0:00:28]} e2 {[%emt 0:00:37]} 65. g4 {[%emt 0:00:17]} exf1=Q+ {[%emt 0:00:11]} 66. Kxf1 {[%emt 0:00:01]} Rf3+ {[%emt 0:00:13]} 67. Ke1 {[%emt 0:00:18]} Rh3 {[%emt 0:00:05]} 0-1